[Event "Titled Tuesday Blitz June 28 Early 2022"]
[White "Large, Peter G"]
[Black "Mrudul Dehankar"]
[WhiteFideId "400866"]
[BlackFideId "25096990"]
[WhiteElo "2064"]
[BlackElo "1766"]
[Result "1-0"]
[Round "11"]
[TimeControl "180+1"]
[Date "2022.06.28"]
[WhiteClock "0:00:19"]
[BlackClock "0:00:01"]

1. Nf3 {[%clk 0:02:59]}  Nf6 {[%clk 0:02:59]} 2. b3 {[%clk 0:02:59]}  d5 {[%clk 0:02:58]} 3. Bb2 {[%clk 0:02:59]}  Bf5 {[%clk 0:02:59]} 4. g3 {[%clk 0:02:57]}  e6 {[%clk 0:02:59]} 5. Bg2 {[%clk 0:02:57]}  h6 {[%clk 0:02:59]} 6. d3 {[%clk 0:02:58]}  Be7 {[%clk 0:02:57]} 7. Nbd2 {[%clk 0:02:58]}  c6 {[%clk 0:02:56]} 8. O-O {[%clk 0:02:57]}  Nbd7 {[%clk 0:02:56]} 9. c4 {[%clk 0:02:57]}  O-O {[%clk 0:02:56]} 10. a3 {[%clk 0:02:57]}  a5 {[%clk 0:02:55]} 11. Ra2 {[%clk 0:02:57]}  Bh7 {[%clk 0:02:48]} 12. Qa1 {[%clk 0:02:57]}  b5 {[%clk 0:02:43]} 13. Rc1 {[%clk 0:02:47]}  Qb6 {[%clk 0:02:38]} 14. Ne5 {[%clk 0:02:37]}  Rfc8 {[%clk 0:02:29]} 15. Nxd7 {[%clk 0:02:17]}  Nxd7 {[%clk 0:02:26]} 16. Bxg7 {[%clk 0:02:07]}  Bg5 {[%clk 0:02:25]} 17. h4 {[%clk 0:01:46]}  Be7 {[%clk 0:01:23]} 18. Bxh6 {[%clk 0:01:36]}  Bf6 {[%clk 0:01:22]} 19. Qb1 {[%clk 0:01:35]}  bxc4 {[%clk 0:01:11]} 20. bxc4 {[%clk 0:01:34]}  Rcb8 {[%clk 0:00:46]} 21. Qxb6 {[%clk 0:01:33]}  Rxb6 {[%clk 0:00:44]} 22. cxd5 {[%clk 0:01:33]}  cxd5 {[%clk 0:00:29]} 23. Be3 {[%clk 0:01:33]}  Rb5 {[%clk 0:00:27]} 24. Nf3 {[%clk 0:01:30]}  Rab8 {[%clk 0:00:24]} 25. Bg5 {[%clk 0:01:12]}  Bb2 {[%clk 0:00:09]} 26. Rc2 {[%clk 0:00:58]}  Nc5 {[%clk 0:00:06]} 27. Be3 {[%clk 0:00:37]}  Nxd3 {[%clk 0:00:05]} 28. exd3 {[%clk 0:00:37]}  Bxd3 {[%clk 0:00:05]} 29. Rd2 {[%clk 0:00:37]}  Bc4 {[%clk 0:00:05]} 30. Raxb2 {[%clk 0:00:32]}  Rxb2 {[%clk 0:00:06]} 31. Rxb2 {[%clk 0:00:29]}  Rxb2 {[%clk 0:00:06]} 32. g4 {[%clk 0:00:24]}  Ra2 {[%clk 0:00:04]} 33. Bc5 {[%clk 0:00:24]}  Ra1+ {[%clk 0:00:03]} 34. Kh2 {[%clk 0:00:24]}  f6 {[%clk 0:00:03]} 35. g5 {[%clk 0:00:23]}  Kf7 {[%clk 0:00:02]} 36. Kg3 {[%clk 0:00:21]}  e5 {[%clk 0:00:02]} 37. h5 {[%clk 0:00:19]}  e4 {[%clk 0:00:01]} 38. g6+ {[%clk 0:00:18]}  Kg7 {[%clk 0:00:01]} 39. Nd4 {[%clk 0:00:19]} 1-0


[Site "https://www.chess.com"]

[Event "Titled Tuesday Blitz June 28 Early 2022"]
[White "Lashkin, Jegor"]
[Black "Dankhazi, Andras"]
[WhiteFideId "13907808"]
[BlackFideId "714267"]
[WhiteElo "2368"]
[BlackElo "2325"]
[Result "1-0"]
[Round "11"]
[TimeControl "180+1"]
[Date "2022.06.28"]
[WhiteClock "0:00:29"]
[BlackClock "0:00:01"]

1. d4 {[%clk 0:03:00]}  d5 {[%clk 0:02:56]} 2. c4 {[%clk 0:03:01]}  e6 {[%clk 0:02:56]} 3. Nc3 {[%clk 0:03:01]}  c6 {[%clk 0:02:51]} 4. e3 {[%clk 0:03:01]}  Nd7 {[%clk 0:02:50]} 5. Nf3 {[%clk 0:03:01]}  f5 {[%clk 0:02:49]} 6. Bd3 {[%clk 0:03:01]}  Ngf6 {[%clk 0:02:44]} 7. O-O {[%clk 0:03:01]}  Bd6 {[%clk 0:02:45]} 8. b3 {[%clk 0:03:02]}  O-O {[%clk 0:02:44]} 9. Bb2 {[%clk 0:03:02]}  Qe7 {[%clk 0:02:44]} 10. Ne2 {[%clk 0:03:03]}  Ne4 {[%clk 0:02:43]} 11. Ne5 {[%clk 0:03:03]}  Nxe5 {[%clk 0:02:40]} 12. dxe5 {[%clk 0:03:04]}  Bc7 {[%clk 0:02:40]} 13. Qc2 {[%clk 0:03:02]}  Bd7 {[%clk 0:02:22]} 14. Rac1 {[%clk 0:02:58]}  Rac8 {[%clk 0:02:19]} 15. f3 {[%clk 0:02:55]}  Ng5 {[%clk 0:02:19]} 16. Qd2 {[%clk 0:02:50]}  Nf7 {[%clk 0:02:14]} 17. f4 {[%clk 0:02:51]}  dxc4 {[%clk 0:01:56]} 18. Bxc4 {[%clk 0:02:47]}  c5 {[%clk 0:01:56]} 19. Nc3 {[%clk 0:02:21]}  Bc6 {[%clk 0:01:53]} 20. Qe2 {[%clk 0:02:19]}  a6 {[%clk 0:01:45]} 21. a4 {[%clk 0:02:19]}  Ba5 {[%clk 0:01:44]} 22. Rfd1 {[%clk 0:01:58]}  Rfd8 {[%clk 0:01:42]} 23. h3 {[%clk 0:01:51]}  Qe8 {[%clk 0:01:40]} 24. Kh2 {[%clk 0:01:43]}  Rxd1 {[%clk 0:01:14]} 25. Nxd1 {[%clk 0:01:38]}  Rd8 {[%clk 0:00:46]} 26. Bd3 {[%clk 0:01:36]}  Bb4 {[%clk 0:00:47]} 27. Nf2 {[%clk 0:01:36]}  b5 {[%clk 0:00:41]} 28. axb5 {[%clk 0:01:25]}  axb5 {[%clk 0:00:41]} 29. Bc3 {[%clk 0:01:25]}  Ba3 {[%clk 0:00:35]} 30. Ra1 {[%clk 0:01:13]}  b4 {[%clk 0:00:31]} 31. Bb2 {[%clk 0:01:14]}  Bxb2 {[%clk 0:00:28]} 32. Qxb2 {[%clk 0:01:14]}  Ra8 {[%clk 0:00:29]} 33. Rc1 {[%clk 0:01:12]}  Ra5 {[%clk 0:00:24]} 34. Qc2 {[%clk 0:01:13]}  Qa8 {[%clk 0:00:22]} 35. e4 {[%clk 0:01:02]}  fxe4 {[%clk 0:00:13]} 36. Bxe4 {[%clk 0:01:00]}  Bxe4 {[%clk 0:00:13]} 37. Nxe4 {[%clk 0:01:00]}  Ra2 {[%clk 0:00:13]} 38. Qd3 {[%clk 0:00:58]}  h6 {[%clk 0:00:06]} 39. Qf3 {[%clk 0:00:55]}  Qd5 {[%clk 0:00:05]} 40. Rxc5 {[%clk 0:00:50]}  Qd4 {[%clk 0:00:05]} 41. Rc8+ {[%clk 0:00:48]}  Kh7 {[%clk 0:00:05]} 42. Rc4 {[%clk 0:00:42]}  Qa1 {[%clk 0:00:04]} 43. Qd3 {[%clk 0:00:39]}  g6 {[%clk 0:00:02]} 44. Nf6+ {[%clk 0:00:37]}  Kg7 {[%clk 0:00:02]} 45. Ne8+ {[%clk 0:00:33]}  Kf8 {[%clk 0:00:02]} 46. Rc8 {[%clk 0:00:30]}  Qf1 {[%clk 0:00:01]} 47. Qxf1 {[%clk 0:00:29]} 1-0


[Site "https://www.chess.com"]

[Event "Titled Tuesday Blitz June 28 Early 2022"]
[White "Maiorov, Nikita"]
[Black "Ladopoulos, Dimitrios"]
[WhiteFideId "13501720"]
[BlackFideId "4239580"]
[WhiteElo "2417"]
[BlackElo "2195"]
[Result "0-1"]
[Round "11"]
[TimeControl "180+1"]
[Date "2022.06.28"]
[WhiteClock "0:00:27"]
[BlackClock "0:00:04"]

1. d4 {[%clk 0:03:00]}  e6 {[%clk 0:02:59]} 2. c4 {[%clk 0:03:00]}  b6 {[%clk 0:02:59]} 3. e4 {[%clk 0:02:58]}  Bb7 {[%clk 0:03:00]} 4. Bd3 {[%clk 0:02:58]}  Nc6 {[%clk 0:02:58]} 5. Ne2 {[%clk 0:02:56]}  Nb4 {[%clk 0:02:59]} 6. Nbc3 {[%clk 0:02:56]}  Nxd3+ {[%clk 0:02:58]} 7. Qxd3 {[%clk 0:02:56]}  Ne7 {[%clk 0:02:59]} 8. O-O {[%clk 0:02:55]}  Ng6 {[%clk 0:03:00]} 9. d5 {[%clk 0:02:52]}  e5 {[%clk 0:02:59]} 10. a4 {[%clk 0:02:50]}  a5 {[%clk 0:02:59]} 11. Be3 {[%clk 0:02:49]}  Bb4 {[%clk 0:02:55]} 12. f4 {[%clk 0:02:42]}  exf4 {[%clk 0:02:54]} 13. Nxf4 {[%clk 0:02:42]}  Ne5 {[%clk 0:02:54]} 14. Qe2 {[%clk 0:02:39]}  Bxc3 {[%clk 0:02:55]} 15. bxc3 {[%clk 0:02:39]}  Ba6 {[%clk 0:02:53]} 16. Nh5 {[%clk 0:02:36]}  O-O {[%clk 0:02:44]} 17. Bd4 {[%clk 0:02:31]}  Bxc4 {[%clk 0:02:40]} 18. Qe3 {[%clk 0:02:30]}  Bxf1 {[%clk 0:02:11]} 19. Bxe5 {[%clk 0:02:28]}  f6 {[%clk 0:02:10]} 20. Qg3 {[%clk 0:02:28]}  Qe7 {[%clk 0:02:00]} 21. Bxf6 {[%clk 0:02:15]}  Rxf6 {[%clk 0:01:52]} 22. Nxf6+ {[%clk 0:02:14]}  Qxf6 {[%clk 0:01:53]} 23. Rxf1 {[%clk 0:02:14]}  Qd6 {[%clk 0:01:47]} 24. Qf3 {[%clk 0:02:07]}  Rf8 {[%clk 0:01:39]} 25. Qe3 {[%clk 0:01:32]}  Qe5 {[%clk 0:01:12]} 26. Rxf8+ {[%clk 0:01:28]}  Kxf8 {[%clk 0:01:13]} 27. h3 {[%clk 0:01:24]}  Ke7 {[%clk 0:00:56]} 28. Qd3 {[%clk 0:01:23]}  h6 {[%clk 0:00:52]} 29. Qe3 {[%clk 0:01:22]}  Qg5 {[%clk 0:00:46]} 30. Qd4 {[%clk 0:01:18]}  d6 {[%clk 0:00:40]} 31. Qc4 {[%clk 0:01:16]}  Qe3+ {[%clk 0:00:36]} 32. Kf1 {[%clk 0:01:15]}  Kd8 {[%clk 0:00:22]} 33. Qd4 {[%clk 0:00:50]}  Qxd4 {[%clk 0:00:11]} 34. cxd4 {[%clk 0:00:49]}  b5 {[%clk 0:00:12]} 35. Ke2 {[%clk 0:00:45]}  bxa4 {[%clk 0:00:07]} 36. Kd2 {[%clk 0:00:45]}  Kd7 {[%clk 0:00:07]} 37. Kc3 {[%clk 0:00:44]}  c6 {[%clk 0:00:08]} 38. dxc6+ {[%clk 0:00:39]}  Kxc6 {[%clk 0:00:09]} 39. Kb2 {[%clk 0:00:39]}  Kb5 {[%clk 0:00:09]} 40. Kc3 {[%clk 0:00:28]}  a3 {[%clk 0:00:06]} 41. Kb3 {[%clk 0:00:28]}  a2 {[%clk 0:00:06]} 42. Kxa2 {[%clk 0:00:29]}  Kc4 {[%clk 0:00:05]} 43. e5 {[%clk 0:00:28]}  dxe5 {[%clk 0:00:05]} 44. dxe5 {[%clk 0:00:29]}  Kd5 {[%clk 0:00:04]} 45. Ka3 {[%clk 0:00:28]}  Kxe5 {[%clk 0:00:03]} 46. Ka4 {[%clk 0:00:28]}  Kf4 {[%clk 0:00:04]} 47. Kxa5 {[%clk 0:00:27]}  Kg3 {[%clk 0:00:04]} 0-1


[Site "https://www.chess.com"]

[Event "Titled Tuesday Blitz June 28 Early 2022"]
[White "Manukian, Artak"]
[Black "Elgersma, Onno"]
[WhiteFideId "13301373"]
[BlackFideId "1053531"]
[WhiteElo "2468"]
[BlackElo "2304"]
[Result "0-1"]
[Round "11"]
[TimeControl "180+1"]
[Date "2022.06.28"]
[WhiteClock "0:00:02"]
[BlackClock "0:00:21"]

1. e4 {[%clk 0:02:56]}  c6 {[%clk 0:02:58]} 2. d4 {[%clk 0:02:56]}  d5 {[%clk 0:02:58]} 3. e5 {[%clk 0:02:56]}  Bf5 {[%clk 0:02:58]} 4. Nf3 {[%clk 0:02:56]}  e6 {[%clk 0:02:59]} 5. c4 {[%clk 0:02:56]}  Ne7 {[%clk 0:02:51]} 6. Nc3 {[%clk 0:02:56]}  Nd7 {[%clk 0:02:51]} 7. Nh4 {[%clk 0:02:55]}  Bg6 {[%clk 0:02:48]} 8. Bg5 {[%clk 0:02:54]}  Qb6 {[%clk 0:02:48]} 9. Qd2 {[%clk 0:02:53]}  Nf5 {[%clk 0:02:46]} 10. Nxf5 {[%clk 0:02:52]}  Bxf5 {[%clk 0:02:46]} 11. cxd5 {[%clk 0:02:50]}  cxd5 {[%clk 0:02:44]} 12. Bb5 {[%clk 0:02:49]}  Bb4 {[%clk 0:02:43]} 13. O-O {[%clk 0:02:42]}  h6 {[%clk 0:02:20]} 14. Bxd7+ {[%clk 0:02:29]}  Kxd7 {[%clk 0:02:19]} 15. Be3 {[%clk 0:02:29]}  Rac8 {[%clk 0:02:19]} 16. Rfc1 {[%clk 0:02:29]}  Bxc3 {[%clk 0:02:17]} 17. bxc3 {[%clk 0:02:24]}  Qa6 {[%clk 0:02:07]} 18. h3 {[%clk 0:02:13]}  b6 {[%clk 0:02:06]} 19. a4 {[%clk 0:02:01]}  Qd3 {[%clk 0:01:58]} 20. Qb2 {[%clk 0:01:57]}  Rc6 {[%clk 0:01:52]} 21. a5 {[%clk 0:01:56]}  b5 {[%clk 0:01:51]} 22. a6 {[%clk 0:01:54]}  Rb8 {[%clk 0:01:44]} 23. Qb4 {[%clk 0:01:39]}  Qc4 {[%clk 0:01:42]} 24. g4 {[%clk 0:01:25]}  Be4 {[%clk 0:01:38]} 25. g5 {[%clk 0:01:23]}  Qe2 {[%clk 0:01:22]} 26. Kh2 {[%clk 0:01:15]}  hxg5 {[%clk 0:01:16]} 27. Rg1 {[%clk 0:01:11]}  f6 {[%clk 0:01:07]} 28. Rae1 {[%clk 0:01:01]}  Qf3 {[%clk 0:01:04]} 29. Rg3 {[%clk 0:00:58]}  Qf5 {[%clk 0:01:04]} 30. f4 {[%clk 0:00:35]}  Rxa6 {[%clk 0:00:55]} 31. Qb2 {[%clk 0:00:18]}  b4 {[%clk 0:00:46]} 32. cxb4 {[%clk 0:00:14]}  Rc6 {[%clk 0:00:46]} 33. Re2 {[%clk 0:00:11]}  a5 {[%clk 0:00:42]} 34. b5 {[%clk 0:00:11]}  Rcb6 {[%clk 0:00:42]} 35. Qa3 {[%clk 0:00:10]}  Rh8 {[%clk 0:00:37]} 36. Qxa5 {[%clk 0:00:09]}  Rhb8 {[%clk 0:00:26]} 37. Qa7+ {[%clk 0:00:08]}  R8b7 {[%clk 0:00:26]} 38. Qa8 {[%clk 0:00:07]}  Rxb5 {[%clk 0:00:25]} 39. Qf8 {[%clk 0:00:07]}  Rb1 {[%clk 0:00:23]} 40. Qxg7+ {[%clk 0:00:02]}  Kc6 {[%clk 0:00:21]} 0-1


[Site "https://www.chess.com"]

[Event "Titled Tuesday Blitz June 28 Early 2022"]
[White "Martinez Alcantara, Jose Eduardo"]
[Black "Tifferet, Shaked"]
[WhiteFideId "3805662"]
[BlackFideId "2811529"]
[WhiteElo "2703"]
[BlackElo "2083"]
[Result "1-0"]
[Round "11"]
[TimeControl "180+1"]
[Date "2022.06.28"]
[WhiteClock "0:00:59"]
[BlackClock "0:00:02"]

1. e4 {[%clk 0:03:00]}  e5 {[%clk 0:02:59]} 2. Nf3 {[%clk 0:03:01]}  Nc6 {[%clk 0:02:59]} 3. Bb5 {[%clk 0:03:00]}  a6 {[%clk 0:02:59]} 4. Ba4 {[%clk 0:03:00]}  Nf6 {[%clk 0:02:59]} 5. d3 {[%clk 0:02:59]}  b5 {[%clk 0:02:54]} 6. Bb3 {[%clk 0:02:59]}  Be7 {[%clk 0:02:53]} 7. Nc3 {[%clk 0:02:58]}  O-O {[%clk 0:02:46]} 8. a3 {[%clk 0:02:58]}  d6 {[%clk 0:02:45]} 9. O-O {[%clk 0:02:57]}  Bg4 {[%clk 0:02:44]} 10. Be3 {[%clk 0:02:58]}  Nd4 {[%clk 0:02:43]} 11. Bxd4 {[%clk 0:02:58]}  exd4 {[%clk 0:02:43]} 12. Nd5 {[%clk 0:02:58]}  Nxd5 {[%clk 0:02:38]} 13. Bxd5 {[%clk 0:02:59]}  Rb8 {[%clk 0:02:36]} 14. h3 {[%clk 0:02:55]}  Bh5 {[%clk 0:02:31]} 15. g4 {[%clk 0:02:51]}  Bg6 {[%clk 0:02:32]} 16. Nxd4 {[%clk 0:02:51]}  Qd7 {[%clk 0:02:32]} 17. f4 {[%clk 0:02:40]}  h6 {[%clk 0:02:20]} 18. Nc6 {[%clk 0:02:37]}  Rb6 {[%clk 0:02:17]} 19. Nxe7+ {[%clk 0:02:37]}  Qxe7 {[%clk 0:02:17]} 20. f5 {[%clk 0:02:38]}  Bh7 {[%clk 0:02:18]} 21. Qf3 {[%clk 0:02:35]}  Qf6 {[%clk 0:02:00]} 22. c3 {[%clk 0:02:32]}  c6 {[%clk 0:01:56]} 23. Ba2 {[%clk 0:02:32]}  Rd8 {[%clk 0:01:50]} 24. d4 {[%clk 0:02:32]}  Rb7 {[%clk 0:01:48]} 25. Rae1 {[%clk 0:02:32]}  Re7 {[%clk 0:01:48]} 26. Re3 {[%clk 0:02:32]}  Rde8 {[%clk 0:01:47]} 27. Rfe1 {[%clk 0:02:32]}  c5 {[%clk 0:01:33]} 28. dxc5 {[%clk 0:02:22]}  dxc5 {[%clk 0:01:32]} 29. e5 {[%clk 0:02:22]}  Qb6 {[%clk 0:01:14]} 30. Bd5 {[%clk 0:02:22]}  c4 {[%clk 0:01:12]} 31. e6 {[%clk 0:02:22]}  fxe6 {[%clk 0:01:06]} 32. Bxe6+ {[%clk 0:02:20]}  Kh8 {[%clk 0:01:01]} 33. Qf2 {[%clk 0:02:21]}  Qd6 {[%clk 0:00:56]} 34. Re4 {[%clk 0:02:18]}  Bg8 {[%clk 0:00:51]} 35. Qe3 {[%clk 0:02:15]}  Bxe6 {[%clk 0:00:46]} 36. Re2 {[%clk 0:02:05]}  Qd1+ {[%clk 0:00:20]} 37. Kh2 {[%clk 0:01:54]}  Qd6+ {[%clk 0:00:11]} 38. Qg3 {[%clk 0:01:54]}  Qd5 {[%clk 0:00:09]} 39. Re5 {[%clk 0:01:50]}  Qd7 {[%clk 0:00:09]} 40. Qe3 {[%clk 0:01:48]}  Qd6 {[%clk 0:00:09]} 41. Kg1 {[%clk 0:01:37]}  Qd1+ {[%clk 0:00:07]} 42. Re1 {[%clk 0:01:35]}  Qd6 {[%clk 0:00:07]} 43. Qd4 {[%clk 0:01:31]}  Qc6 {[%clk 0:00:03]} 44. Kf2 {[%clk 0:01:14]}  Kh7 {[%clk 0:00:01]} 45. Qe3 {[%clk 0:01:08]}  Kh8 {[%clk 0:00:01]} 46. fxe6 {[%clk 0:01:08]}  Qd6 {[%clk 0:00:01]} 47. Qd4 {[%clk 0:01:07]}  Rf8+ {[%clk 0:00:02]} 48. Kg3 {[%clk 0:01:06]}  Qc6 {[%clk 0:00:02]} 49. R1e4 {[%clk 0:01:05]}  Qc8 {[%clk 0:00:02]} 50. h4 {[%clk 0:01:04]}  Qe8 {[%clk 0:00:03]} 51. h5 {[%clk 0:01:04]}  Rf6 {[%clk 0:00:03]} 52. Rd5 {[%clk 0:01:00]}  Kh7 {[%clk 0:00:02]} 53. Rd8 {[%clk 0:00:55]}  Qc6 {[%clk 0:00:02]} 54. Rd6 {[%clk 0:00:55]}  Qc8 {[%clk 0:00:02]} 55. Re5 {[%clk 0:00:53]}  Rexe6 {[%clk 0:00:02]} 56. Qe4+ {[%clk 0:00:54]}  Rg6 {[%clk 0:00:01]} 57. Rdxe6 {[%clk 0:00:54]}  Qxe6 {[%clk 0:00:01]} 58. hxg6+ {[%clk 0:00:55]}  Qxg6 {[%clk 0:00:01]} 59. Qxg6+ {[%clk 0:00:55]}  Kxg6 {[%clk 0:00:02]} 60. Re6+ {[%clk 0:00:56]}  Kg5 {[%clk 0:00:02]} 61. Rxa6 {[%clk 0:00:57]}  g6 {[%clk 0:00:02]} 62. Ra5 {[%clk 0:00:58]}  Kf6 {[%clk 0:00:02]} 63. Rxb5 {[%clk 0:00:59]}  h5 {[%clk 0:00:03]} 64. Rb4 {[%clk 0:01:00]}  Kg5 {[%clk 0:00:03]} 65. gxh5 {[%clk 0:00:59]}  gxh5 {[%clk 0:00:02]} 66. Rxc4 {[%clk 0:00:59]} 1-0


[Site "https://www.chess.com"]

[Event "Titled Tuesday Blitz June 28 Early 2022"]
[White "Mosutha, Thuso"]
[Black "Sarkar, Justin"]
[WhiteFideId "11302550"]
[BlackFideId "2010011"]
[WhiteElo "2028"]
[BlackElo "2020"]
[Result "0-1"]
[Round "11"]
[TimeControl "180+1"]
[Date "2022.06.28"]
[WhiteClock "0:01:30"]
[BlackClock "0:00:03"]

1. d4 {[%clk 0:03:00]}  Nf6 {[%clk 0:02:56]} 2. Bf4 {[%clk 0:02:59]}  e6 {[%clk 0:02:40]} 3. Nf3 {[%clk 0:02:58]}  c5 {[%clk 0:02:36]} 4. e3 {[%clk 0:02:58]}  Nc6 {[%clk 0:02:32]} 5. c3 {[%clk 0:02:57]}  d5 {[%clk 0:02:28]} 6. Bd3 {[%clk 0:02:56]}  Bd6 {[%clk 0:02:15]} 7. Bg3 {[%clk 0:02:55]}  O-O {[%clk 0:02:12]} 8. Nbd2 {[%clk 0:02:55]}  Re8 {[%clk 0:01:54]} 9. e4 {[%clk 0:02:52]}  Bf8 {[%clk 0:01:12]} 10. e5 {[%clk 0:02:50]}  Nh5 {[%clk 0:01:08]} 11. h4 {[%clk 0:02:35]}  Nxg3 {[%clk 0:00:58]} 12. fxg3 {[%clk 0:02:36]}  cxd4 {[%clk 0:00:48]} 13. Bxh7+ {[%clk 0:02:29]}  Kxh7 {[%clk 0:00:20]} 14. Ng5+ {[%clk 0:02:29]}  Kg6 {[%clk 0:00:20]} 15. Qg4 {[%clk 0:02:15]}  Nxe5 {[%clk 0:00:19]} 16. h5+ {[%clk 0:01:45]}  Kh6 {[%clk 0:00:18]} 17. Qf4 {[%clk 0:01:42]}  Nd3+ {[%clk 0:00:17]} 18. Ke2 {[%clk 0:01:40]}  Nxf4+ {[%clk 0:00:17]} 19. gxf4 {[%clk 0:01:41]}  Qf6 {[%clk 0:00:15]} 20. g3 {[%clk 0:01:40]}  dxc3 {[%clk 0:00:14]} 21. bxc3 {[%clk 0:01:41]}  Qf5 {[%clk 0:00:13]} 22. Kf2 {[%clk 0:01:37]}  f6 {[%clk 0:00:13]} 23. Ngf3 {[%clk 0:01:32]}  e5 {[%clk 0:00:11]} 24. Rh4 {[%clk 0:01:30]}  Qd3 {[%clk 0:00:10]} 25. fxe5 {[%clk 0:01:23]}  fxe5 {[%clk 0:00:10]} 26. g4 {[%clk 0:01:23]}  e4 {[%clk 0:00:08]} 27. g5+ {[%clk 0:01:23]}  Kh7 {[%clk 0:00:08]} 28. g6+ {[%clk 0:01:16]}  Kh6 {[%clk 0:00:07]} 29. Re1 {[%clk 0:01:14]}  exf3 {[%clk 0:00:05]} 30. Rxe8 {[%clk 0:01:14]}  Qxd2+ {[%clk 0:00:05]} 31. Kxf3 {[%clk 0:01:15]}  Bg4+ {[%clk 0:00:04]} 32. Kxg4 {[%clk 0:01:15]}  Rxe8 {[%clk 0:00:03]} 33. Kh3 {[%clk 0:01:16]}  Re3+ {[%clk 0:00:03]} 34. Kg4 {[%clk 0:01:17]}  Qg2+ {[%clk 0:00:03]} 35. Kf5 {[%clk 0:01:18]}  Qf3+ {[%clk 0:00:02]} 36. Rf4 {[%clk 0:01:18]}  Re5+ {[%clk 0:00:01]} 37. Kxe5 {[%clk 0:01:18]}  Bd6+ {[%clk 0:00:02]} 38. Kxd6 {[%clk 0:01:18]}  Qxf4+ {[%clk 0:00:03]} 39. Kxd5 {[%clk 0:01:19]}  Kxh5 {[%clk 0:00:03]} 40. c4 {[%clk 0:01:20]}  Kxg6 {[%clk 0:00:03]} 41. c5 {[%clk 0:01:21]}  Kf6 {[%clk 0:00:03]} 42. c6 {[%clk 0:01:21]}  bxc6+ {[%clk 0:00:04]} 43. Kxc6 {[%clk 0:01:22]}  Qf3+ {[%clk 0:00:02]} 44. Kb5 {[%clk 0:01:23]}  Qa3 {[%clk 0:00:02]} 45. Kc4 {[%clk 0:01:23]}  Qxa2+ {[%clk 0:00:03]} 46. Kc5 {[%clk 0:01:24]}  a5 {[%clk 0:00:03]} 47. Kc6 {[%clk 0:01:25]}  a4 {[%clk 0:00:03]} 48. Kd7 {[%clk 0:01:26]}  Qb3 {[%clk 0:00:03]} 49. Kc7 {[%clk 0:01:26]}  Qb4 {[%clk 0:00:03]} 50. Kd7 {[%clk 0:01:26]}  Ke5 {[%clk 0:00:03]} 51. Ke8 {[%clk 0:01:27]}  Qb6 {[%clk 0:00:03]} 52. Kf8 {[%clk 0:01:28]}  Qb7 {[%clk 0:00:03]} 53. Kg8 {[%clk 0:01:29]}  Kf6 {[%clk 0:00:03]} 54. Kh8 {[%clk 0:01:29]}  g5 {[%clk 0:00:03]} 55. Kg8 {[%clk 0:01:30]}  Qg7# {[%clk 0:00:03]} 0-1


[Site "https://www.chess.com"]

[Event "Titled Tuesday Blitz June 28 Early 2022"]
[White "Nguyen, Quoc Hy"]
[Black "Csonka, Balazs"]
[WhiteFideId "12410853"]
[BlackFideId "742910"]
[WhiteElo "1938"]
[BlackElo "2404"]
[Result "0-1"]
[Round "11"]
[TimeControl "180+1"]
[Date "2022.06.28"]
[WhiteClock "0:00:22"]
[BlackClock "0:00:18"]

1. d4 {[%clk 0:02:57]}  e6 {[%clk 0:03:00]} 2. c4 {[%clk 0:02:58]}  Nf6 {[%clk 0:02:59]} 3. Nc3 {[%clk 0:02:58]}  Bb4 {[%clk 0:02:58]} 4. Qc2 {[%clk 0:02:57]}  b6 {[%clk 0:02:55]} 5. e4 {[%clk 0:02:56]}  c5 {[%clk 0:02:54]} 6. d5 {[%clk 0:02:56]}  Qe7 {[%clk 0:02:53]} 7. Ne2 {[%clk 0:02:52]}  exd5 {[%clk 0:02:50]} 8. exd5 {[%clk 0:02:51]}  O-O {[%clk 0:02:50]} 9. f3 {[%clk 0:02:47]}  b5 {[%clk 0:02:35]} 10. Bg5 {[%clk 0:02:04]}  bxc4 {[%clk 0:02:33]} 11. O-O-O {[%clk 0:02:03]}  d6 {[%clk 0:02:24]} 12. Ng3 {[%clk 0:02:01]}  h6 {[%clk 0:02:12]} 13. Bf4 {[%clk 0:01:56]}  Qc7 {[%clk 0:01:04]} 14. Bxc4 {[%clk 0:01:47]}  Nbd7 {[%clk 0:00:58]} 15. Nb5 {[%clk 0:01:44]}  Qb6 {[%clk 0:00:47]} 16. Nxd6 {[%clk 0:01:35]}  Ba6 {[%clk 0:00:41]} 17. Ngf5 {[%clk 0:01:28]}  Rab8 {[%clk 0:00:29]} 18. g4 {[%clk 0:00:53]}  Qa5 {[%clk 0:00:23]} 19. g5 {[%clk 0:00:42]}  hxg5 {[%clk 0:00:22]} 20. Bxg5 {[%clk 0:00:42]}  Ba3 {[%clk 0:00:22]} 21. Bb3 {[%clk 0:00:31]}  c4 {[%clk 0:00:21]} 22. Nxc4 {[%clk 0:00:28]}  Bxc4 {[%clk 0:00:19]} 23. Qxc4 {[%clk 0:00:27]}  Rfc8 {[%clk 0:00:19]} 24. Qc6 {[%clk 0:00:21]}  Rxc6+ {[%clk 0:00:18]} 25. dxc6 {[%clk 0:00:22]}  Qc3+ {[%clk 0:00:18]} 0-1


[Site "https://www.chess.com"]